bitfinex/quotes_BTCUSD_20250602
["timestamp","ask_amount","ask_price","bid_price","bid_amount"]
[1748876091396,0.001,104100.0,104090.0,1.65497313]
[1748876091609,0.06962272,104100.0,104090.0,0.81284926]
[1748876091803,0.29224567,104100.0,104090.0,0.73777605]
[1748876091953,0.27303477,104100.0,104090.0,0.11527886]
[1748876092163,0.27303477,104100.0,104090.0,0.62274027]
[1748876092366,0.27303477,104100.0,104090.0,0.63234715]
[1748876092999,0.263429,104100.0,104090.0,0.43059886]
[1748876093200,0.603429,104100.0,104090.0,0.01279886]
[1748876094201,0.61336804,104100.0,104090.0,0.00979886]
[1748876094601,0.61236804,104100.0,104090.0,0.00879886]
[1748876095203,0.57384829,104090.0,104080.0,0.00705141]
[1748876096709,0.67170259,104090.0,104080.0,0.00705141]
[1748876098361,0.70510259,104090.0,104080.0,0.00705141]
[1748876100453,1.02034259,104090.0,104080.0,0.00705141]
[1748876103960,0.70510259,104090.0,104080.0,0.00705141]
[1748876104165,0.60924829,104090.0,104080.0,0.00705141]
[1748876104364,0.92444829,104090.0,104080.0,0.00705141]
[1748876104960,0.92444829,104090.0,104080.0,0.22803479]
[1748876104961,0.58745508,104090.0,104080.0,0.22803479]
[1748876105173,0.58745508,104090.0,104080.0,0.05172457]
[1748876105377,0.61745508,104090.0,104080.0,0.05172457]
[1748876105593,0.61745508,104090.0,104080.0,0.00705141]
[1748876105795,0.4061,104090.0,104080.0,0.2280346]
[1748876106035,0.004,104090.0,104080.0,0.47316002]
[1748876106453,0.004,104090.0,104080.0,0.88277722]
[1748876106661,0.004,104090.0,104080.0,0.87316002]
[1748876106867,0.002,104090.0,104080.0,0.96567124]
[1748876107083,0.002,104090.0,104080.0,0.96667124]
[1748876107548,0.01921118,104100.0,104090.0,0.2209615]
[1748876107768,0.01921118,104100.0,104090.0,0.7345358]
[1748876107976,0.02881695,104100.0,104090.0,0.7345358]
[1748876108194,0.01921118,104100.0,104090.0,1.1345358]
[1748876108609,0.02881705,104100.0,104090.0,1.1345358]
[1748876108827,0.01921118,104100.0,104090.0,1.1345358]
[1748876109273,0.20172835,104100.0,104090.0,0.71167805]
[1748876109483,0.21135508,104090.0,104080.0,0.00705141]
[1748876109701,0.27165508,104090.0,104080.0,0.00705141]
[1748876109907,0.61165508,104090.0,104080.0,0.00705141]
[1748876110346,0.61165508,104090.0,104080.0,0.21842698]
[1748876110553,0.55135508,104090.0,104080.0,0.20881927]
[1748876110768,0.55135508,104090.0,104080.0,0.22903497]
[1748876110769,0.54174829,104090.0,104080.0,0.22903497]
[1748876110967,0.54174829,104090.0,104080.0,0.23103497]
[1748876111167,0.35921348,104090.0,104080.0,0.24064268]
[1748876111398,0.22096186,104090.0,104080.0,0.39774321]
[1748876111609,0.22096186,104090.0,104080.0,0.3527703]
[1748876112531,0.22096186,104090.0,104080.0,0.11257141]
[1748876112732,0.22096186,104090.0,104080.0,0.32394698]
[1748876113162,0.21135526,104090.0,104080.0,0.32394698]
[1748876113810,0.20174838,104090.0,104080.0,0.31433918]
[1748876114012,0.20174838,104090.0,104080.0,0.32394689]
[1748876114145,0.20174838,104090.0,104080.0,0.33355451]
[1748876114364,0.22382295,104100.0,104090.0,0.20174829]
[1748876114588,0.22382295,104100.0,104080.0,0.41980055]
[1748876114589,0.60622909,104100.0,104080.0,0.41980055]
[1748876114787,0.01921312,104090.0,104080.0,0.4294078]
[1748876114987,0.01921275,104090.0,104080.0,0.4294078]
[1748876115190,0.01921275,104090.0,104080.0,0.4274078]
[1748876115395,0.00971899,104110.0,104090.0,0.20174801]
[1748876115596,0.37853327,104110.0,104100.0,0.63858027]
[1748876115792,0.36881428,104110.0,104100.0,0.63858027]
[1748876115971,0.001,104100.0,104090.0,0.30720883]
[1748876116207,0.21233422,104100.0,104090.0,0.29760268]
[1748876116383,0.02881723,104100.0,104090.0,0.7440624]
[1748876116795,0.24015237,104100.0,104090.0,0.41933598]
[1748876117155,0.2859411,104100.0,104090.0,0.40012268]
[1748876117354,0.2869411,104100.0,104090.0,0.41933616]
[1748876117561,0.09481815,104100.0,104090.0,0.42894258]
[1748876117925,0.02021108,104100.0,104090.0,0.42894258]
[1748876118128,0.02021108,104100.0,104090.0,0.44301795]
[1748876118337,0.001,104100.0,104090.0,0.44301795]
[1748876118637,0.001,104100.0,104090.0,0.47591795]
[1748876118834,0.0106054,104100.0,104090.0,0.47591795]
[1748876119254,0.001,104100.0,104090.0,0.47591795]
[1748876119408,0.001,104100.0,104090.0,0.51759984]
[1748876120025,0.001,104100.0,104090.0,0.91759888]
[1748876120228,0.001,104100.0,104090.0,0.9175979]
[1748876121276,0.22194055,104100.0,104090.0,0.79027571]
[1748876121473,0.22194055,104100.0,104090.0,0.32324131]
[1748876121474,0.06081742,104100.0,104090.0,0.32324131]
[1748876121669,0.23154651,104100.0,104090.0,0.32324131]
[1748876121870,0.03942356,104100.0,104090.0,0.32324131]
[1748876122098,0.02981667,104100.0,104090.0,0.32324131]
[1748876122288,0.02021081,104100.0,104090.0,0.31681561]
[1748876122539,0.001,104100.0,104090.0,0.82664683]
[1748876122747,0.001,104100.0,104090.0,0.85904683]
[1748876122888,0.02021099,104100.0,104090.0,0.73413561]
[1748876123656,0.0106054,104100.0,104090.0,0.73413561]
[1748876123879,0.28523999,104100.0,104090.0,0.20174829]
[1748876124095,0.27563459,104100.0,104090.0,0.10228]
[1748876124305,0.27563459,104100.0,104090.0,0.60942141]
[1748876124513,0.27563459,104100.0,104090.0,0.61902848]
[1748876124717,0.21135471,104090.0,104080.0,0.32070698]
[1748876124925,0.25286187,104090.0,104080.0,0.30467357]
[1748876125140,0.27605517,104090.0,104080.0,0.52018571]
[1748876125346,0.27605517,104090.0,104080.0,0.72195348]
[1748876125550,0.27605517,104090.0,104080.0,0.73156128]
[1748876125793,0.27605517,104090.0,104080.0,0.71234558]
[1748876126026,0.27605517,104090.0,104080.0,0.72495357]
[1748876126257,0.27605517,104090.0,104080.0,0.40995357]
[1748876126569,0.27605517,104090.0,104080.0,0.74416872]
[1748876126783,0.27605517,104090.0,104080.0,0.72495357]
[1748876126996,0.27605517,104090.0,104080.0,0.73456137]
[1748876127230,0.27605517,104090.0,104080.0,0.74416899]
[1748876127464,0.27605517,104090.0,104080.0,0.11233141]
[1748876127465,0.23505517,104090.0,104080.0,0.11233141]
[1748876127716,0.23505517,104090.0,104080.0,0.62905908]
[1748876128396,0.23505517,104090.0,104080.0,0.01005141]
[1748876128628,0.23505517,104090.0,104080.0,0.32249141]
[1748876129116,0.22494141,104090.0,104080.0,0.52425927]
[1748876129328,0.22494141,104090.0,104080.0,0.53386717]
[1748876130029,0.22494141,104090.0,104080.0,0.3320994]
[1748876130299,0.53212295,104100.0,104090.0,0.19214141]
[1748876130568,0.58273496,104100.0,104090.0,0.20174838]
[1748876131084,0.58273496,104100.0,104090.0,0.21135526]
[1748876131368,0.36881742,104100.0,104090.0,0.33602928]
[1748876131640,0.57054651,104100.0,104090.0,0.34656423]
[1748876131873,0.57154651,104100.0,104090.0,0.32642286]
[1748876132365,0.36981742,104100.0,104090.0,0.33602928]
[1748876133074,0.35060531,104100.0,104090.0,0.43830928]
[1748876133286,0.02981677,104100.0,104090.0,0.46870928]
[1748876133493,0.0202109,104100.0,104090.0,0.5612205]
[1748876133694,0.0202109,104100.0,104090.0,0.46870928]
[1748876133871,0.02981677,104100.0,104090.0,0.46870928]
[1748876134618,0.02981677,104100.0,104090.0,0.43830928]
[1748876134870,0.0202109,104100.0,104090.0,0.43830928]
[1748876135107,0.01060531,104100.0,104090.0,0.47140928]
[1748876135570,0.02021081,104100.0,104090.0,0.87140928]
[1748876135809,0.01060531,104100.0,104090.0,0.9639205]
[1748876136046,0.001,104100.0,104090.0,0.9963205]
[1748876136275,0.001,104100.0,104090.0,1.00550479]
[1748876137605,0.001,104100.0,104090.0,1.52422533]
[1748876137812,0.001,104100.0,104090.0,1.02004564]
[1748876138029,0.05963022,104120.0,104110.0,0.22091905]
[1748876138237,0.05963022,104120.0,104110.0,0.77890872]
[1748876138852,0.06923369,104120.0,104110.0,0.77890872]
[1748876139337,0.05963022,104120.0,104110.0,1.16483335]
[1748876139546,0.05963022,104120.0,104110.0,1.16583335]
[1748876139758,0.05963022,104120.0,104110.0,1.16783335]
[1748876140676,0.06923369,104120.0,104110.0,1.16783335]
[1748876140868,0.05963022,104120.0,104110.0,1.16783335]
[1748876141087,0.05963022,104120.0,104110.0,1.29214457]
[1748876141289,0.05963022,104120.0,104110.0,1.3013052]
[1748876141726,0.05963022,104120.0,104110.0,0.8841452]
[1748876142158,0.05963022,104120.0,104110.0,1.29206457]
[1748876142378,0.05963022,104120.0,104110.0,0.75067335]
[1748876142589,0.05963022,104120.0,104110.0,0.71016878]
[1748876142590,0.27092385,104120.0,104110.0,0.71016878]
[1748876142804,0.31262806,104120.0,104110.0,0.6143143]
[1748876143012,0.34472806,104120.0,104110.0,0.6313943]
[1748876144301,0.34472806,104120.0,104110.0,0.64095951]
[1748876144557,0.15264201,104120.0,104110.0,0.65056408]
[1748876145077,0.10133415,104120.0,104110.0,0.62170972]
[1748876145315,0.31262806,104120.0,104110.0,0.64091933]
[1748876145610,0.31262806,104120.0,104110.0,0.73343055]
[1748876145807,0.32223236,104120.0,104110.0,0.73343055]
[1748876146555,0.32223236,104120.0,104110.0,0.74303512]
[1748876147016,0.12054201,104120.0,104110.0,0.74303512]
[1748876147215,0.12054201,104120.0,104110.0,0.32603512]
[1748876147456,0.12054201,104120.0,104110.0,0.74283512]
[1748876147669,0.12054201,104120.0,104110.0,0.6503239]
[1748876148095,0.12054201,104120.0,104110.0,0.003]
[1748876148096,0.31262806,104120.0,104110.0,0.003]
[1748876148299,0.67362441,104120.0,104110.0,0.31772]
[1748876150489,0.67362441,104120.0,104110.0,0.60233572]
[1748876150774,0.45093836,104120.0,104110.0,0.54824409]
[1748876151017,0.40923387,104120.0,104110.0,0.55784866]
[1748876151231,0.07883771,104120.0,104110.0,0.55784866]
[1748876152594,0.06923387,104120.0,104110.0,0.55784866]
[1748876152824,0.07883761,104120.0,104110.0,0.55784866]
[1748876153515,0.07883761,104120.0,104110.0,0.74621418]
[1748876153516,0.05963022,104120.0,104110.0,0.74621418]
[1748876153751,0.05963022,104120.0,104110.0,0.68650296]
[1748876154201,0.05963022,104120.0,104110.0,1.08650296]
[1748876156268,0.07883743,104120.0,104110.0,0.73898296]
[1748876156483,0.14183762,104120.0,104110.0,1.13649335]
[1748876156693,0.14183762,104120.0,104110.0,0.81228457]
[1748876157154,0.14183762,104120.0,104110.0,0.82900457]
[1748876157576,0.15144155,104120.0,104110.0,0.41228457]
[1748876157784,0.13223378,104120.0,104110.0,0.82900457]
[1748876157992,0.14183762,104120.0,104110.0,0.73649335]
[1748876158195,0.15144164,104120.0,104110.0,0.73649335]
[1748876160654,0.33392478,104120.0,104110.0,0.41968]
[1748876161310,0.33392478,104120.0,104110.0,0.62138972]
[1748876161734,0.33392478,104120.0,104110.0,0.6405997]
[1748876161920,0.33392478,104120.0,104110.0,0.64059989]
[1748876162160,0.32432057,104120.0,104110.0,0.64059989]
[1748876162431,0.32432057,104120.0,104110.0,0.65020483]
[1748876162840,0.29192057,104120.0,104110.0,0.65020483]
[1748876163270,0.29192057,104120.0,104110.0,0.65980959]
[1748876163482,0.29192057,104120.0,104110.0,0.65020483]
[1748876164386,0.30152459,104120.0,104110.0,0.75232025]
[1748876164598,0.09983369,104120.0,104110.0,0.84817455]
[1748876164892,0.06923378,104120.0,104110.0,0.84817455]
[1748876165106,0.05963022,104120.0,104110.0,0.88017455]
[1748876165339,0.05963022,104120.0,104110.0,0.92135708]
[1748876166061,0.05963022,104120.0,104110.0,0.88935708]
[1748876166347,0.05963022,104120.0,104110.0,0.79684586]
[1748876166592,0.05963022,104120.0,104110.0,1.19684586]
[1748876166816,0.05963022,104120.0,104110.0,1.22794586]
[1748876167872,0.05963022,104120.0,104110.0,1.19684586]
[1748876168504,0.05963022,104120.0,104110.0,1.28935708]
[1748876168945,0.05963022,104120.0,104110.0,1.28936031]
[1748876169164,0.05963022,104120.0,104110.0,1.31936031]
[1748876171102,0.05963022,104120.0,104110.0,1.33390116]
[1748876171511,0.05963022,104120.0,104110.0,1.83808085]
[1748876171732,0.0304,104170.0,104150.0,0.20163161]
[1748876171947,0.0304,104170.0,104160.0,0.637413]
[1748876171948,0.00959895,104170.0,104160.0,0.637413]
[1748876172169,4.849e-05,104170.0,104160.0,0.7332673]
[1748876172432,0.01924648,104170.0,104160.0,1.1332673]
[1748876172875,0.37861472,104170.0,104160.0,1.1332673]
[1748876173104,0.61040831,104170.0,104160.0,0.4958543]
[1748876173325,0.61040831,104170.0,104150.0,0.32291421]
[1748876173326,0.09420109,104160.0,104150.0,0.32291421]
[1748876173549,0.09420091,104160.0,104150.0,0.73324851]
[1748876173799,0.28621319,104160.0,104150.0,1.11400646]
[1748876174022,0.27661304,104160.0,104150.0,1.11400646]
[1748876174236,0.27661304,104160.0,104150.0,0.80651768]
[1748876174444,0.27661304,104160.0,104150.0,0.29748646]
[1748876174727,0.26683207,104150.0,104140.0,0.41484]
[1748876175005,0.27583251,104150.0,104140.0,1.03301161]
[1748876175248,0.26683207,104150.0,104140.0,1.04261388]
[1748876175722,0.60671261,104160.0,104150.0,0.20163216]
[1748876175955,0.60671261,104160.0,104150.0,0.20263225]
[1748876176196,0.60671261,104160.0,104150.0,0.20363225]
[1748876176439,0.60671261,104160.0,104150.0,0.20163225]
[1748876176660,0.60671261,104160.0,104150.0,0.2112336]
[1748876176883,0.60671261,104160.0,104150.0,0.22083476]
[1748876177111,0.61571266,104160.0,104150.0,0.2112336]
[1748876177341,0.60671261,104160.0,104150.0,0.22183485]
[1748876177623,0.60671261,104160.0,104150.0,0.2122336]
[1748876177866,0.60671261,104160.0,104150.0,0.22630897]
[1748876178081,0.58341251,104160.0,104150.0,0.24551138]
[1748876178294,0.57441261,104160.0,104150.0,0.23243601]
[1748876178708,0.60561261,104160.0,104150.0,0.002]
[1748876178955,0.59601228,104160.0,104150.0,0.41828]
[1748876179352,0.59601228,104160.0,104150.0,0.10392]
[1748876179567,0.59601228,104160.0,104150.0,0.41828]
[1748876179767,0.59601228,104160.0,104150.0,0.61031072]
[1748876180001,0.59601228,104160.0,104150.0,0.41828]
[1748876180646,0.60501251,104160.0,104150.0,0.41828]
[1748876180851,0.60501246,104160.0,104150.0,0.41828]
[1748876181059,0.59601228,104160.0,104150.0,0.41828]
[1748876181491,0.59601228,104160.0,104150.0,0.62951369]
[1748876181696,0.61521295,104160.0,104150.0,0.73162607]
[1748876181901,0.62481291,104160.0,104150.0,0.64871592]
[1748876182516,0.63441352,104160.0,104150.0,0.62951369]
[1748876182723,0.63441352,104160.0,104150.0,0.63911504]
[1748876182724,0.62481356,104160.0,104150.0,0.63911504]
[1748876183128,0.62481356,104160.0,104150.0,0.6487162]
[1748876183330,0.61521332,104160.0,104150.0,0.6487162]
[1748876183534,0.61521332,104160.0,104150.0,0.63911504]
[1748876184153,0.61521332,104160.0,104150.0,0.62951369]
[1748876184269,0.60561289,104160.0,104150.0,0.63911504]
[1748876185088,0.60561289,104160.0,104150.0,0.64863629]
[1748876185295,0.60561289,104160.0,104150.0,0.63903504]
[1748876186145,0.59601228,104160.0,104150.0,0.63903504]
[1748876186579,0.59601228,104160.0,104150.0,0.64863629]
[1748876186995,0.0328,104160.0,104150.0,0.74114696]
[1748876187199,0.23060903,104170.0,104160.0,0.23041324]
[1748876187382,0.27050872,104170.0,104160.0,0.23041342]
[1748876187547,0.07851487,104170.0,104160.0,0.63041342]
[1748876187911,0.28010832,104170.0,104160.0,0.62081346]
[1748876188114,0.62010832,104170.0,104160.0,0.63041352]
[1748876188322,0.40891518,104170.0,104160.0,0.64001348]
[1748876188496,0.40991518,104170.0,104160.0,0.64001348]
[1748876189123,0.37001568,104170.0,104160.0,0.65408885]
[1748876189332,0.38061518,104170.0,104160.0,0.65408885]
[1748876189533,0.58220872,104170.0,104160.0,0.65408885]
[1748876189743,0.61290872,104170.0,104160.0,0.64001348]
[1748876189943,0.61290872,104170.0,104160.0,0.23041361]
[1748876190146,0.64370872,104170.0,104160.0,0.62729322]
[1748876190372,0.63410968,104170.0,104160.0,0.62729322]
[1748876190781,0.63410968,104170.0,104160.0,0.63689346]
[1748876191386,0.63410968,104170.0,104160.0,0.61769289]
[1748876191604,0.63410968,104170.0,104160.0,0.63689346]
[1748876192441,0.63410968,104170.0,104160.0,0.62729322]
[1748876192652,0.61491086,104170.0,104160.0,0.62729341]
[1748876192847,0.61491086,104170.0,104160.0,0.62729332]
[1748876193049,0.61491086,104170.0,104160.0,0.63689365]
[1748876193795,0.61491086,104170.0,104160.0,0.6464938]
[1748876194022,0.61491086,104170.0,104160.0,0.62729332]
[1748876194239,0.61491086,104170.0,104160.0,0.41608]
[1748876194442,0.61491086,104170.0,104160.0,0.42568061]
[1748876194647,0.61491086,104170.0,104160.0,0.20161289]
[1748876194817,0.61491086,104170.0,104160.0,0.61765289]
[1748876195022,0.69561315,104170.0,104160.0,0.10188]
[1748876195231,0.69561315,104170.0,104160.0,0.416]
[1748876195441,0.61491086,104170.0,104160.0,0.416]
[1748876196140,0.61247086,104170.0,104160.0,0.416]
[1748876196992,0.61247086,104170.0,104160.0,0.31412]
[1748876197401,0.02880321,104150.0,104140.0,1.1279725]
[1748876197647,0.02880321,104150.0,104140.0,1.5379468]
[1748876197846,0.01920186,104150.0,104140.0,1.5379468]
[1748876198058,0.02880302,104150.0,104140.0,1.5379468]
[1748876198225,0.01920186,104150.0,104140.0,1.63045802]
[1748876198627,0.03840446,104150.0,104140.0,1.63962485]
[1748876198878,0.02880311,104150.0,104140.0,1.63345802]
[1748876199314,0.02880311,104150.0,104140.0,1.63545802]
[1748876199532,0.02880311,104150.0,104140.0,1.42420552]
[1748876199748,0.22083457,104150.0,104140.0,1.43337509]
[1748876200433,0.2749335,104150.0,104140.0,0.10688]
[1748876200636,0.2749335,104150.0,104140.0,0.42096]
[1748876203003,0.2749335,104150.0,104140.0,0.005]
[1748876203205,0.6149335,104150.0,104140.0,0.31904]
[1748876203761,0.7107878,104150.0,104140.0,0.005]
[1748876204378,0.7107878,104150.0,104140.0,0.002]
[1748876204742,0.57325143,104140.0,104130.0,0.31404]
[1748876205135,0.60285143,104140.0,104130.0,0.31404]
[1748876206375,0.60385143,104140.0,104130.0,0.31404]
[1748876206550,0.60485143,104140.0,104130.0,0.31404]
[1748876208379,0.26485143,104140.0,104130.0,0.31404]
[1748876208797,0.26485143,104140.0,104130.0,0.7413622]
[1748876208798,0.0116019,104140.0,104130.0,0.7413622]
[1748876209017,0.22285486,104140.0,104130.0,0.85642279]
[1748876209235,0.23245722,104140.0,104130.0,0.8974257]
[1748876209417,0.04040787,104140.0,104130.0,1.30702843]
[1748876209659,0.03940787,104140.0,104130.0,1.30702843]
[1748876209872,0.03840787,104140.0,104130.0,1.30702843]
[1748876210091,0.02880533,104140.0,104130.0,1.21551721]
[1748876210303,0.01920242,104150.0,104140.0,0.22085541]
[1748876210515,0.01920242,104150.0,104140.0,0.34760971]
[1748876210516,0.23043611,104150.0,104140.0,0.34760971]
[1748876210726,0.23043611,104150.0,104140.0,0.3380079]
[1748876211153,0.23043611,104150.0,104140.0,0.35721179]
[1748876211368,0.23043611,104150.0,104140.0,0.75721179]
[1748876211590,0.01920168,104150.0,104140.0,0.87932227]
[1748876212062,0.02980275,104150.0,104140.0,0.87932227]
[1748876212269,0.03080275,104150.0,104140.0,0.87932227]
[1748876212476,0.02120168,104150.0,104140.0,0.87932227]
[1748876212920,0.01160079,104150.0,104140.0,0.88847748]
[1748876213138,0.02120177,104150.0,104140.0,0.88847748]
[1748876213351,0.01160079,104150.0,104140.0,0.88847748]
[1748876213559,0.02120177,104150.0,104140.0,0.88847748]
[1748876214434,0.03080293,104150.0,104140.0,0.87932227]
[1748876214648,0.04040428,104150.0,104140.0,1.122668]
[1748876214857,0.04040428,104150.0,104140.0,1.13226999]
[1748876215065,0.04040428,104150.0,104140.0,1.14187189]
[1748876215470,0.232435,104150.0,104140.0,1.14187189]
[1748876215733,0.24203653,104150.0,104140.0,1.14187189]
[1748876215939,0.232435,104150.0,104140.0,1.24398492]
[1748876216151,0.24203718,104150.0,104140.0,1.22478121]
[1748876216348,0.24203718,104150.0,104140.0,1.23438311]
[1748876216769,0.03080349,104150.0,104140.0,1.24398492]
[1748876217008,0.23243565,104150.0,104140.0,1.21517894]
[1748876217212,0.24203718,104150.0,104140.0,1.1322699]
[1748876218041,0.2324362,104150.0,104140.0,1.122668]
[1748876218264,0.2324362,104150.0,104140.0,1.13226999]
[1748876218475,0.22283467,104150.0,104140.0,1.15102875]
[1748876218819,0.02120205,104150.0,104140.0,1.27468492]
[1748876219023,0.01160089,104150.0,104140.0,1.27468492]
[1748876219227,0.03080331,104150.0,104140.0,1.28384265]
[1748876219667,0.02120168,104150.0,104140.0,1.31434274]
[1748876220272,0.002,104150.0,104140.0,1.31434274]
[1748876220440,0.002,104150.0,104140.0,1.32888359]
[1748876221363,0.002,104150.0,104140.0,1.31422274]
[1748876221364,0.001,104150.0,104140.0,1.31422274]
[1748876221765,0.02819968,104160.0,104150.0,0.25073421]
[1748876221968,0.02819968,104160.0,104150.0,0.4016217]
[1748876222189,0.21119465,104170.0,104160.0,0.21121286]
[1748876222190,0.19839433,104170.0,104160.0,0.21121286]
[1748876222393,0.02879731,104170.0,104160.0,1.13210712]
[1748876222593,0.02879731,104170.0,104160.0,1.16090712]
[1748876223161,0.03839672,104170.0,104160.0,1.16090712]
[1748876223386,0.04799622,104170.0,104160.0,1.25341834]
[1748876223600,0.03839672,104170.0,104160.0,1.25341834]
[1748876223807,0.04799622,104170.0,104160.0,1.25441834]
[1748876224010,0.23999017,104170.0,104160.0,1.22661834]
[1748876224203,0.04799632,104170.0,104160.0,1.22661834]
[1748876224636,0.19203405,104190.0,104170.0,0.21119277]
[1748876224838,0.19200456,104180.0,104170.0,0.22526814]
[1748876225045,0.21120191,104180.0,104170.0,0.23486737]
[1748876225256,0.22080022,104180.0,104170.0,0.3403208]
[1748876225907,0.22080022,104180.0,104170.0,0.33072167]
[1748876226321,0.21120191,104180.0,104170.0,0.72112262]
[1748876226459,0.21120191,104180.0,104170.0,0.74032135]
[1748876226660,0.21120191,104180.0,104170.0,0.73072203]
[1748876227081,0.21220191,104180.0,104170.0,0.74032135]
[1748876227311,0.21220191,104180.0,104170.0,0.74992058]
[1748876227312,0.21320191,104180.0,104170.0,0.74992058]
[1748876227862,0.002,104180.0,104170.0,0.74992002]
[1748876228067,0.002,104180.0,104170.0,0.80942002]
[1748876228299,0.01159812,104180.0,104170.0,0.80942002]
[1748876228480,0.02119633,104180.0,104170.0,0.80942002]
[1748876228886,0.01159812,104180.0,104170.0,0.80942002]
[1748876229094,0.002,104180.0,104170.0,0.80942002]
[1748876229311,0.002,104180.0,104170.0,1.21155854]
[1748876229524,0.002,104180.0,104170.0,1.58837974]
[1748876229743,0.002,104180.0,104170.0,1.99051826]
[1748876229957,0.001,104180.0,104170.0,1.99051826]
[1748876230168,0.23982829,104210.0,104200.0,0.21113196]
[1748876230169,0.26912893,104210.0,104200.0,0.21113196]
[1748876230378,0.26927436,104210.0,104200.0,0.75581614]
[1748876230592,0.26927436,104210.0,104200.0,0.76541288]
[1748876231023,0.26927436,104210.0,104200.0,0.7846059]
[1748876231241,0.04805254,104210.0,104200.0,0.79420218]
[1748876231454,0.23037615,104210.0,104200.0,0.7846059]
[1748876231683,0.23137615,104210.0,104200.0,0.7846059]
[1748876231902,0.23137615,104210.0,104200.0,0.77500944]
[1748876232528,0.22178079,104210.0,104200.0,0.73182309]
[1748876232731,0.25168079,104210.0,104200.0,0.73182309]
[1748876233150,0.23248934,104210.0,104200.0,0.5110943]
[1748876233366,0.01919431,104190.0,104180.0,0.22073857]
[1748876233561,0.01919431,104190.0,104180.0,0.37458177]
[1748876233562,0.02879188,104190.0,104180.0,0.37458177]
[1748876233774,0.24844998,104190.0,104180.0,0.45702534]
[1748876233988,0.24844998,104190.0,104180.0,0.64545697]
[1748876234189,0.22074998,104190.0,104180.0,0.64545697]
[1748876234395,0.23934492,104190.0,104180.0,0.64545697]
[1748876234597,0.23034783,104190.0,104180.0,0.73796819]
[1748876234824,0.00959821,104180.0,104170.0,0.61119221]
[1748876235031,0.25895485,104190.0,104180.0,0.3128124]
[1748876235437,0.25895485,104190.0,104180.0,0.3148124]
[1748876235642,0.25895485,104190.0,104180.0,0.3178124]
[1748876235851,0.25895485,104190.0,104180.0,0.32741071]
[1748876236269,0.22074961,104190.0,104180.0,0.31828183]
[1748876236483,0.22074961,104190.0,104180.0,0.6312524]
[1748876237309,0.24894961,104190.0,104180.0,0.6312124]
[1748876237511,0.25794665,104190.0,104180.0,0.6312124]
[1748876238496,0.24894961,104190.0,104180.0,0.31781268]
[1748876238707,0.22975429,104190.0,104180.0,0.7333223]
[1748876238921,0.23875158,104190.0,104180.0,0.7333223]
[1748876239129,0.24834915,104190.0,104180.0,0.7333223]
[1748876239276,0.23935186,104190.0,104180.0,0.74292061]
[1748876239483,0.23935186,104190.0,104180.0,0.7333223]
[1748876239912,0.05639215,104190.0,104180.0,0.74292061]
[1748876240120,0.24894971,104190.0,104180.0,0.74292061]
[1748876240325,0.257947,104190.0,104180.0,0.7333223]
[1748876240528,0.257947,104190.0,104180.0,0.7237239]
[1748876240776,0.24834971,104190.0,104180.0,0.72372399]
[1748876240926,0.03778981,104190.0,104180.0,0.74292088]
[1748876241159,0.04738756,104190.0,104180.0,0.74292032]
[1748876241362,0.03778981,104190.0,104180.0,0.75251844]
[1748876241594,0.03778981,104190.0,104180.0,0.74292032]
[1748876241920,0.03778981,104190.0,104180.0,0.75251844]
[1748876242226,0.00899729,104190.0,104180.0,0.84837274]
[1748876242427,0.01859431,104190.0,104180.0,0.90807274]
[1748876242581,0.027591,104190.0,104180.0,1.30807274]
[1748876242776,0.01859431,104190.0,104180.0,1.30807274]
[1748876242962,0.02759095,104190.0,104180.0,1.30807274]
[1748876243412,0.01859431,104190.0,104180.0,1.30807274]
[1748876243611,0.03778871,104190.0,104180.0,1.30807274]
[1748876244865,0.22014842,104190.0,104180.0,0.72162519]
[1748876245076,0.07778646,104190.0,104180.0,1.15546162]
[1748876245277,0.04738646,104190.0,104180.0,1.15546162]
[1748876245611,0.0377888,104190.0,104180.0,1.15542162]
[1748876245810,0.06598095,104190.0,104180.0,1.15542162]
[1748876246058,0.05698403,104190.0,104180.0,1.24793284]
[1748876246484,0.065981,104190.0,104180.0,1.24793284]
[1748876246647,0.05698403,104190.0,104180.0,1.24793284]
[1748876246848,0.25793892,104190.0,104180.0,1.23833472]
[1748876247048,0.24834173,104190.0,104180.0,1.1458235]
[1748876247314,0.27693633,104190.0,104180.0,1.1458235]
[1748876247467,0.0377899,104190.0,104180.0,1.1458235]
[1748876247668,0.04678142,104190.0,104180.0,1.15542162]
[1748876247896,0.04678142,104190.0,104180.0,1.24793284]
[1748876248099,0.23873842,104190.0,104180.0,1.24793284]
[1748876248301,0.2891415,104190.0,104180.0,0.81956]
[1748876248539,0.2801498,104190.0,104180.0,0.005]
[1748876248738,0.2801498,104190.0,104180.0,0.41956]
[1748876249289,0.2801498,104190.0,104180.0,0.41656]
[1748876249907,0.2801498,104190.0,104180.0,0.41752]
[1748876250034,0.27055214,104190.0,104180.0,0.10236]
[1748876250239,0.27954413,104190.0,104180.0,0.60749542]
[1748876250469,0.27055214,104190.0,104180.0,0.62769286]
[1748876250627,0.27055214,104190.0,104180.0,0.41652]
[1748876251234,0.61954443,104190.0,104180.0,0.002]
[1748876251433,0.71539911,104190.0,104180.0,0.002]
[1748876251660,0.72094729,104190.0,104180.0,0.002]
[1748876251833,1.03406729,104190.0,104180.0,0.002]
[1748876252250,1.03406729,104190.0,104180.0,0.001]
[1748876252493,0.81345851,104190.0,104180.0,0.001]
[1748876252740,0.57039094,104170.0,104160.0,0.22081312]
[1748876252915,0.56079208,104170.0,104160.0,0.22081312]
[1748876253109,0.31819849,104170.0,104160.0,0.22081312]
[1748876253323,0.52939088,104170.0,104160.0,0.21121297]
[1748876253901,0.52939088,104170.0,104160.0,0.21221297]
[1748876254110,0.33739703,104170.0,104160.0,0.22181312]
[1748876254288,0.53899057,104170.0,104160.0,0.23141318]
[1748876254705,0.53899057,104170.0,104160.0,0.32390177]
[1748876255150,0.53899057,104170.0,104160.0,0.23241318]
[1748876255737,0.53899057,104170.0,104160.0,0.21321297]
[1748876256135,0.54849764,104170.0,104160.0,0.21321297]
[1748876256963,0.32770556,104170.0,104160.0,0.23241308]
[1748876257163,0.61987108,104180.0,104170.0,0.22079218]
[1748876257399,0.28886433,104180.0,104170.0,0.52423295]
[1748876257603,0.27987108,104180.0,104170.0,0.52423295]
[1748876257808,0.61987108,104180.0,104170.0,0.52423295]
[1748876258208,0.61987108,104180.0,104170.0,0.52423304]
[1748876258362,0.62087108,104180.0,104170.0,0.52423304]
[1748876258568,0.62187108,104180.0,104170.0,0.53383245]
[1748876259367,0.47053463,104180.0,104170.0,0.63519245]
[1748876259564,0.48013294,104180.0,104170.0,0.63519245]
[1748876259993,0.48013294,104180.0,104170.0,0.62559304]
[1748876260198,0.48991954,104180.0,104170.0,0.62559304]
[1748876260399,0.48991954,104180.0,104170.0,0.71810426]
[1748876260610,0.49891284,104180.0,104170.0,0.71810426]
[1748876260833,0.48991954,104180.0,104170.0,0.71810426]
[1748876261286,0.48991954,104180.0,104170.0,0.72770349]